[Event "Schack-SM 2024: Mastarklassen"]
[Site "Fortnox Arena, Hejaregatan 5, Vaxjo, Sweden"]
[Date "2024.07.07"]
[Round "9.3"]
[White "Muntean, Victor"]
[Black "Nygren, David"]
[Result "0-1"]
[TimeControl "90 minutes for 40 moves + 30 minutes for the rest of the game + 30 seconds per move from move one."]
[WhiteElo "2136"]
[BlackElo "2132"]

1. e4 {[%clk 01:30:57]} {[%emt 00:00:02]} e6 {[%clk 01:30:53]} {[%emt
00:00:08]} 2. d4 {[%clk 01:31:23]} {[%emt 00:00:04]} d5 {[%clk 01:31:17]}
{[%emt 00:00:06]} 3. e5 {[%clk 01:31:48]} {[%emt 00:00:05]} c5 {[%clk
01:31:27]} {[%emt 00:00:20]} 4. c3 {[%clk 01:32:13]} {[%emt 00:00:05]} Nc6
{[%clk 01:31:39]} {[%emt 00:00:19]} 5. Nf3 {[%clk 01:32:37]} {[%emt 00:00:06]}
Nge7 {[%clk 01:31:44]} {[%emt 00:00:24]} 6. Bd3 {[%clk 01:31:22]} {[%emt
00:01:46]} cxd4 {[%clk 01:31:45]} {[%emt 00:00:28]} 7. O-O {[%clk 01:29:46]}
{[%emt 00:02:06]} dxc3 {[%clk 01:27:07]} {[%emt 00:05:09]} 8. Nxc3 {[%clk
01:30:03]} {[%emt 00:00:12]} Ng6 {[%clk 01:27:26]} {[%emt 00:00:11]} 9. Re1
{[%clk 01:21:37]} {[%emt 00:08:57]} Be7 {[%clk 01:20:07]} {[%emt 00:07:48]} 10.
a3 {[%clk 01:19:11]} {[%emt 00:02:57]} Bd7 {[%clk 01:17:09]} {[%emt 00:03:27]}
11. Qc2 {[%clk 01:09:22]} {[%emt 00:10:20]} Rc8 {[%clk 01:14:34]} {[%emt
00:03:05]} 12. Qb1 {[%clk 01:01:48]} {[%emt 00:08:05]} Na5 {[%clk 01:10:54]}
{[%emt 00:04:08]} 13. Bc2 {[%clk 00:51:02]} {[%emt 00:11:17]} Nc4 {[%clk
01:06:40]} {[%emt 00:04:44]} 14. b3 {[%clk 00:46:36]} {[%emt 00:04:55]} Nxa3
{[%clk 00:53:23]} {[%emt 00:13:47]} 15. Bxa3 {[%clk 00:46:33]} {[%emt
00:00:35]} Bxa3 {[%clk 00:49:55]} {[%emt 00:03:58]} 16. Nxd5 {[%clk 00:46:43]}
{[%emt 00:00:19]} Bc5 {[%clk 00:49:12]} {[%emt 00:01:12]} 17. Ne3 {[%clk
00:45:36]} {[%emt 00:01:38]} Qc7 {[%clk 00:46:14]} {[%emt 00:03:29]} 18. Nc4
{[%clk 00:42:18]} {[%emt 00:03:46]} b5 {[%clk 00:44:22]} {[%emt 00:02:23]} 19.
Bxg6 {[%clk 00:42:16]} {[%emt 00:00:32]} bxc4 {[%clk 00:41:15]} {[%emt
00:03:37]} 20. Bxh7 {[%clk 00:39:48]} {[%emt 00:02:58]} Qb6 {[%clk 00:38:46]}
{[%emt 00:03:00]} 21. Re2 {[%clk 00:32:36]} {[%emt 00:07:43]} cxb3 {[%clk
00:36:15]} {[%emt 00:03:01]} 22. Ng5 {[%clk 00:28:10]} {[%emt 00:04:55]} Bd4
{[%clk 00:32:04]} {[%emt 00:04:40]} 23. Nxf7 {[%clk 00:26:36]} {[%emt
00:02:04]} b2 {[%clk 00:24:15]} {[%emt 00:08:20]} 24. Nd6+ {[%clk 00:21:06]}
{[%emt 00:05:59]} Ke7 {[%clk 00:21:59]} {[%emt 00:02:47]} 0-1

[Event "Schack-SM 2024: Mastarklassen"]
[Site "Fortnox Arena, Hejaregatan 5, Vaxjo, Sweden"]
[Date "2024.07.07"]
[Round "9.4"]
[White "Collett, Peter"]
[Black "Joensson, Jacob"]
[Result "1/2-1/2"]
[TimeControl "90 minutes for 40 moves + 30 minutes for the rest of the game + 30 seconds per move from move one."]
[WhiteTitle "CM"]
[WhiteElo "2116"]
[BlackElo "2068"]

1. d4 {[%clk 01:30:58]} {[%emt 00:00:01]} Nf6 {[%clk 01:30:56]} {[%emt
00:00:04]} 2. c4 {[%clk 01:31:20]} {[%emt 00:00:08]} e6 {[%clk 01:31:23]}
{[%emt 00:00:04]} 3. Nc3 {[%clk 01:31:42]} {[%emt 00:00:06]} d5 {[%clk
01:31:50]} {[%emt 00:00:04]} 4. cxd5 {[%clk 01:31:41]} {[%emt 00:00:31]} exd5
{[%clk 01:32:16]} {[%emt 00:00:04]} 5. Bg5 {[%clk 01:32:00]} {[%emt 00:00:10]}
c6 {[%clk 01:32:41]} {[%emt 00:00:06]} 6. Qc2 {[%clk 01:32:05]} {[%emt
00:00:23]} Be7 {[%clk 01:33:05]} {[%emt 00:00:08]} 7. e3 {[%clk 01:32:15]}
{[%emt 00:00:19]} Nbd7 {[%clk 01:33:31]} {[%emt 00:00:04]} 8. Bd3 {[%clk
01:32:19]} {[%emt 00:00:25]} Nh5 {[%clk 01:33:57]} {[%emt 00:00:07]} 9. Bxe7
{[%clk 01:28:49]} {[%emt 00:03:58]} Qxe7 {[%clk 01:34:22]} {[%emt 00:00:04]} 10.
O-O-O {[%clk 01:28:55]} {[%emt 00:00:25]} Nb6 {[%clk 01:34:37]} {[%emt
00:00:16]} 11. h3 {[%clk 01:26:15]} {[%emt 00:03:09]} g6 {[%clk 01:35:01]}
{[%emt 00:00:06]} 12. g4 {[%clk 01:26:00]} {[%emt 00:00:45]} Ng7 {[%clk
01:35:26]} {[%emt 00:00:06]} 13. Nf3 {[%clk 01:25:53]} {[%emt 00:00:36]} Bd7
{[%clk 01:35:02]} {[%emt 00:00:55]} 14. Kb1 {[%clk 01:25:28]} {[%emt 00:00:54]}
O-O-O {[%clk 01:35:15]} {[%emt 00:00:17]} 15. a4 {[%clk 01:17:39]} {[%emt
00:08:18]} Qb4 {[%clk 01:35:29]} {[%emt 00:00:17]} 16. Ne5 {[%clk 01:17:06]}
{[%emt 00:01:03]} Rhf8 {[%clk 01:35:46]} {[%emt 00:00:12]} 17. Be2 {[%clk
01:15:45]} {[%emt 00:01:50]} Ne6 {[%clk 01:19:56]} {[%emt 00:16:21]} 18. b3
{[%clk 01:11:52]} {[%emt 00:04:22]} Kb8 {[%clk 01:10:41]} {[%emt 00:09:46]} 19.
Ka2 {[%clk 01:02:48]} {[%emt 00:09:34]} f5 {[%clk 01:05:25]} {[%emt 00:05:47]}
20. f4 {[%clk 01:00:02]} {[%emt 00:03:14]} g5 {[%clk 00:58:06]} {[%emt
00:07:50]} 21. gxf5 {[%clk 00:57:01]} {[%emt 00:03:31]} Ng7 {[%clk 00:58:04]}
{[%emt 00:00:31]} 22. Rdg1 {[%clk 00:19:10]} {[%emt 00:38:21]} Nxf5 {[%clk
00:56:19]} {[%emt 00:02:17]} 23. Rxg5 {[%clk 00:18:55]} {[%emt 00:00:44]} Nxe3
{[%clk 00:54:38]} {[%emt 00:02:11]} 24. Qd3 {[%clk 00:18:11]} {[%emt 00:01:14]}
Nf5 {[%clk 00:54:34]} {[%emt 00:00:35]} 25. Nxd7+ {[%clk 00:16:19]} {[%emt
00:02:21]} Nxd7 {[%clk 00:51:42]} {[%emt 00:03:22]} 26. Rxf5 {[%clk 00:15:16]}
{[%emt 00:01:33]} Rxf5 {[%clk 00:52:01]} {[%emt 00:00:11]} 27. Qxf5 {[%clk
00:15:39]} {[%emt 00:00:08]} Qxc3 {[%clk 00:52:23]} {[%emt 00:00:07]} 28. Qd3
{[%clk 00:13:48]} {[%emt 00:02:22]} Qxd3 {[%clk 00:39:49]} {[%emt 00:13:04]} 29.
Bxd3 {[%emt 00:00:12]} Rf8 {[%clk 00:40:14]} 30. Bxh7 {[%clk 00:11:37]} {[%emt
00:03:03]} Rxf4 {[%clk 00:40:39]} {[%emt 00:00:06]} 31. Rd1 {[%clk 00:11:49]}
{[%emt 00:00:17]} Nf6 {[%clk 00:39:53]} {[%emt 00:01:17]} 32. Bc2 {[%clk
00:11:34]} {[%emt 00:00:45]} Ne4 {[%clk 00:39:32]} {[%emt 00:00:50]} 33. Bxe4
{[%clk 00:09:47]} {[%emt 00:02:17]} Rxe4 {[%clk 00:39:52]} {[%emt 00:00:10]} 34.
Rd3 {[%clk 00:09:02]} {[%emt 00:01:14]} Kc7 {[%clk 00:36:28]} {[%emt 00:03:54]}
35. Kb2 {[%clk 00:09:07]} {[%emt 00:00:26]} Kd6 {[%clk 00:35:33]} {[%emt
00:01:25]} 36. Kc3 {[%clk 00:09:25]} {[%emt 00:00:11]} b6 {[%clk 00:33:29]}
{[%emt 00:02:34]} 37. Rg3 {[%clk 00:09:09]} {[%emt 00:00:45]} Rh4 {[%clk
00:33:44]} {[%emt 00:00:16]} 38. Rg6+ {[%clk 00:09:13]} {[%emt 00:00:27]} Kc7
{[%clk 00:33:57]} {[%emt 00:00:15]} 39. Rg7+ {[%clk 00:09:24]} {[%emt
00:00:18]} Kd6 {[%clk 00:34:20]} {[%emt 00:00:08]} 40. Rg6+ {[%clk 00:09:33]}
{[%emt 00:00:22]} Kc7 {[%clk 00:34:44]} {[%emt 00:00:06]} 41. Rg7+ {[%clk
00:09:58]} {[%emt 00:00:04]} Kd6 {[%clk 00:35:10]} {[%emt 00:00:04]} 1/2-1/2

[Event "Schack-SM 2024: Mastarklassen"]
[Site "Fortnox Arena, Hejaregatan 5, Vaxjo, Sweden"]
[Date "2024.07.07"]
[Round "9.5"]
[White "Walinder, Lars"]
[Black "Lind, Jan-Olov"]
[Result "1-0"]
[TimeControl "90 minutes for 40 moves + 30 minutes for the rest of the game + 30 seconds per move from move one."]
[WhiteTitle "FM"]
[WhiteElo "2233"]
[BlackElo "2135"]

1. c4 {[%clk 01:30:36]} {[%emt 00:00:23]} c5 {[%clk 01:30:34]} {[%emt
00:00:26]} 2. Nf3 {[%clk 01:30:42]} {[%emt 00:00:24]} Nc6 {[%clk 01:30:41]}
{[%emt 00:00:24]} 3. d4 {[%clk 01:31:00]} {[%emt 00:00:11]} cxd4 {[%clk
01:30:35]} {[%emt 00:00:37]} 4. Nxd4 {[%clk 01:31:03]} {[%emt 00:00:26]} g6
{[%clk 01:30:41]} {[%emt 00:00:24]} 5. e4 {[%clk 01:31:21]} {[%emt 00:00:11]}
Bg7 {[%clk 01:30:53]} {[%emt 00:00:19]} 6. Be3 {[%clk 01:31:25]} {[%emt
00:00:26]} Nf6 {[%clk 01:31:04]} {[%emt 00:00:20]} 7. Nc3 {[%clk 01:31:44]}
{[%emt 00:00:10]} O-O {[%clk 01:31:20]} {[%emt 00:00:14]} 8. Be2 {[%clk
01:31:59]} {[%emt 00:00:15]} d6 {[%clk 01:31:39]} {[%emt 00:00:11]} 9. O-O
{[%clk 01:31:58]} {[%emt 00:00:32]} Bd7 {[%clk 01:31:55]} {[%emt 00:00:14]} 10.
Qd2 {[%clk 01:32:15]} {[%emt 00:00:13]} Nxd4 {[%clk 01:32:10]} {[%emt
00:00:14]} 11. Bxd4 {[%clk 01:32:37]} {[%emt 00:00:08]} Bc6 {[%clk 01:32:30]}
{[%emt 00:00:11]} 12. f3 {[%clk 01:32:55]} {[%emt 00:00:11]} a5 {[%clk
01:32:50]} {[%emt 00:00:11]} 13. b3 {[%clk 01:32:48]} {[%emt 00:00:36]} Nd7
{[%clk 01:32:09]} {[%emt 00:01:10]} 14. Be3 {[%clk 01:33:09]} {[%emt 00:00:10]}
Nc5 {[%clk 01:32:08]} {[%emt 00:00:31]} 15. Rab1 {[%clk 01:33:03]} {[%emt
00:00:36]} e6 {[%clk 01:30:41]} {[%emt 00:01:57]} 16. Bd1 {[%clk 01:32:37]}
{[%emt 00:00:56]} Qc7 {[%clk 01:30:42]} {[%emt 00:00:29]} 17. Bc2 {[%clk
01:30:24]} {[%emt 00:02:42]} Rfd8 {[%clk 01:15:37]} {[%emt 00:15:36]} 18. Rfd1
{[%clk 01:14:44]} {[%emt 00:16:10]} Be5 {[%clk 01:06:53]} {[%emt 00:09:14]} 19.
Bd4 {[%clk 01:05:06]} {[%emt 00:10:07]} b6 {[%clk 01:00:44]} {[%emt 00:06:41]}
20. a3 {[%clk 00:57:25]} {[%emt 00:08:11]} a4 {[%clk 00:52:41]} {[%emt
00:08:32]} 21. b4 {[%clk 00:48:24]} {[%emt 00:09:31]} Nb3 {[%clk 00:52:16]}
{[%emt 00:00:56]} 22. Bxb3 {[%clk 00:47:25]} {[%emt 00:01:28]} axb3 {[%clk
00:52:38]} {[%emt 00:00:08]} 23. Rxb3 {[%clk 00:47:34]} {[%emt 00:00:22]} Be8
{[%clk 00:52:38]} {[%emt 00:00:29]} 24. Qe2 {[%clk 00:32:25]} {[%emt 00:15:39]}
Rdc8 {[%clk 00:47:23]} {[%emt 00:05:44]} 25. Bxe5 {[%clk 00:25:35]} {[%emt
00:07:22]} dxe5 {[%clk 00:47:46]} {[%emt 00:00:06]} 26. Nb5 {[%clk 00:25:09]}
{[%emt 00:00:56]} Qxc4 {[%clk 00:47:30]} {[%emt 00:00:47]} 27. Qxc4 {[%clk
00:23:42]} {[%emt 00:01:58]} Rxc4 {[%clk 00:47:53]} {[%emt 00:00:07]} 28. Nd6
{[%clk 00:23:34]} {[%emt 00:00:36]} Ba4 {[%clk 00:47:57]} {[%emt 00:00:27]} 29.
Nxc4 {[%clk 00:23:21]} {[%emt 00:00:43]} Bxb3 {[%clk 00:47:41]} {[%emt
00:00:46]} 30. Nxb6 {[%clk 00:23:39]} {[%emt 00:00:12]} Rxa3 {[%clk 00:47:07]}
{[%emt 00:01:04]} 31. Rb1 {[%clk 00:21:17]} {[%emt 00:02:52]} Bc2 {[%clk
00:43:21]} {[%emt 00:04:16]} 32. Rb2 {[%clk 00:18:35]} {[%emt 00:03:13]} Bd3
{[%clk 00:42:24]} {[%emt 00:01:26]} 33. Nd7 {[%clk 00:12:22]} {[%emt 00:06:44]}
Bb5 {[%clk 00:40:56]} {[%emt 00:01:57]} 34. Nxe5 {[%clk 00:10:23]} {[%emt
00:02:29]} h5 {[%clk 00:35:21]} {[%emt 00:06:04]} 35. h4 {[%clk 00:07:34]}
{[%emt 00:03:19]} Kg7 {[%clk 00:35:07]} {[%emt 00:00:44]} 36. Rc2 {[%clk
00:07:15]} {[%emt 00:00:48]} Rb3 {[%clk 00:29:05]} {[%emt 00:06:32]} 37. Rc7
{[%clk 00:06:31]} {[%emt 00:01:13]} Be8 {[%clk 00:29:03]} {[%emt 00:00:33]} 38.
Rb7 {[%clk 00:05:22]} {[%emt 00:01:40]} Rc3 {[%clk 00:25:17]} {[%emt 00:04:15]}
39. Kf2 {[%clk 00:03:44]} {[%emt 00:02:08]} Kf8 {[%clk 00:23:27]} {[%emt
00:02:20]} 40. Nd7+ {[%clk 00:01:49]} {[%emt 00:02:27]} Bxd7 {[%clk 00:23:03]}
{[%emt 00:00:54]} 41. Rxd7 {[%clk 00:02:10]} {[%emt 00:00:07]} Rc2+ {[%clk
00:23:24]} {[%emt 00:00:09]} 42. Kg3 {[%clk 00:01:36]} {[%emt 00:01:05]} Rb2
{[%clk 00:23:08]} {[%emt 00:00:45]} 43. Rb7 {[%clk 00:01:11]} {[%emt 00:00:55]}
Kg7 {[%clk 00:20:07]} {[%emt 00:03:31]} 44. b5 {[%clk 00:11:48]} {[%emt
00:19:54]} Kf6 {[%clk 00:49:05]} {[%emt 00:01:30]} 45. b6 {[%clk 00:10:48]}
{[%emt 00:01:31]} Kg7 {[%clk 00:48:26]} {[%emt 00:01:08]} 46. e5 {[%clk
00:08:54]} {[%emt 00:02:23]} Rb4 {[%clk 00:47:41]} {[%emt 00:01:15]} 47. Rb8
{[%clk 00:09:02]} {[%emt 00:00:23]} Kh7 {[%clk 00:46:58]} {[%emt 00:01:12]} 48.
f4 {[%clk 00:06:37]} {[%emt 00:02:55]} Rb3+ {[%clk 00:46:59]} {[%emt 00:00:30]}
49. Kf2 {[%clk 00:06:58]} {[%emt 00:00:08]} Kg7 {[%clk 00:46:09]} {[%emt
00:01:19]} 50. g3 {[%clk 00:06:03]} {[%emt 00:01:26]} Kh7 {[%clk 00:46:08]}
{[%emt 00:00:31]} 51. Ke2 {[%clk 00:05:10]} {[%emt 00:01:23]} Kg7 {[%clk
00:46:07]} {[%emt 00:00:33]} 52. Kd2 {[%clk 00:04:46]} {[%emt 00:00:53]} Rxg3
{[%clk 00:44:58]} {[%emt 00:01:39]} 53. Kc2 {[%clk 00:04:59]} {[%emt 00:00:17]}
Rg2+ {[%clk 00:44:07]} {[%emt 00:01:21]} 54. Kc3 {[%clk 00:05:04]} {[%emt
00:00:26]} Rg3+ {[%clk 00:43:52]} {[%emt 00:00:43]} 55. Kc4 {[%clk 00:05:27]}
{[%emt 00:00:08]} Rg4 {[%clk 00:41:25]} {[%emt 00:02:57]} 56. b7 {[%clk
00:04:26]} {[%emt 00:01:32]} Rxf4+ {[%clk 00:41:09]} {[%emt 00:00:45]} 57. Kc5
{[%clk 00:04:36]} {[%emt 00:00:20]} Rf1 {[%clk 00:40:02]} {[%emt 00:01:36]} 58.
Ra8 {[%clk 00:04:01]} {[%emt 00:01:05]} Rb1 {[%clk 00:38:52]} {[%emt 00:01:40]}
59. b8=Q {[%clk 00:04:24]} {[%emt 00:00:07]} Rxb8 {[%clk 00:39:18]} {[%emt
00:00:04]} 60. Rxb8 {[%clk 00:04:46]} {[%emt 00:00:08]} 1-0

[Event "Schack-SM 2024: Mastarklassen"]
[Site "Fortnox Arena, Hejaregatan 5, Vaxjo, Sweden"]
[Date "2024.07.07"]
[Round "9.6"]
[White "Mardell, Jimmy"]
[Black "Johnson, Daniel"]
[Result "1-0"]
[TimeControl "90 minutes for 40 moves + 30 minutes for the rest of the game + 30 seconds per move from move one."]
[WhiteElo "2186"]
[BlackElo "2126"]

1. e4 {[%clk 01:30:56]} {[%emt 00:00:03]} e5 {[%clk 01:21:21]} {[%emt
00:09:39]} 2. Nf3 {[%clk 01:31:13]} {[%emt 00:00:14]} Nc6 {[%clk 01:21:38]}
{[%emt 00:00:12]} 3. Bc4 {[%clk 01:31:35]} {[%emt 00:00:09]} Nf6 {[%clk
01:20:54]} {[%emt 00:01:13]} 4. d3 {[%clk 01:31:51]} {[%emt 00:00:15]} Bc5
{[%clk 01:19:56]} {[%emt 00:01:29]} 5. c3 {[%clk 01:32:07]} {[%emt 00:00:14]}
d6 {[%clk 01:20:08]} {[%emt 00:00:18]} 6. O-O {[%clk 01:31:47]} {[%emt
00:00:50]} O-O {[%clk 01:19:57]} {[%emt 00:00:41]} 7. Re1 {[%clk 01:31:05]}
{[%emt 00:01:12]} a5 {[%clk 01:18:41]} {[%emt 00:01:46]} 8. d4 {[%clk
01:28:01]} {[%emt 00:03:34]} Ba7 {[%clk 01:18:13]} {[%emt 00:00:59]} 9. Bb5
{[%clk 01:15:33]} {[%emt 00:12:58]} Bd7 {[%clk 01:07:57]} {[%emt 00:10:46]} 10.
Bg5 {[%clk 00:57:08]} {[%emt 00:18:55]} h6 {[%clk 01:00:26]} {[%emt 00:08:00]}
11. Bh4 {[%clk 00:56:11]} {[%emt 00:01:28]} exd4 {[%clk 00:33:00]} {[%emt
00:27:56]} 12. cxd4 {[%clk 00:50:23]} {[%emt 00:06:19]} Bg4 {[%clk 00:31:06]}
{[%emt 00:02:23]} 13. Bxc6 {[%clk 00:44:02]} {[%emt 00:06:53]} bxc6 {[%clk
00:30:34]} {[%emt 00:01:02]} 14. Nc3 {[%clk 00:44:24]} {[%emt 00:00:08]} Bxf3
{[%clk 00:28:25]} {[%emt 00:02:37]} 15. gxf3 {[%clk 00:44:07]} {[%emt
00:00:49]} Rb8 {[%clk 00:25:24]} {[%emt 00:03:30]} 16. Qd2 {[%clk 00:41:46]}
{[%emt 00:02:52]} g5 {[%clk 00:20:59]} {[%emt 00:04:54]} 17. Bg3 {[%clk
00:40:13]} {[%emt 00:02:03]} Nh5 {[%clk 00:20:35]} {[%emt 00:00:54]} 18. Ne2
{[%clk 00:27:01]} {[%emt 00:13:42]} Qf6 {[%clk 00:19:43]} {[%emt 00:01:21]} 19.
Qxa5 {[%clk 00:21:01]} {[%emt 00:06:31]} Bxd4 {[%clk 00:15:39]} {[%emt
00:04:34]} 20. Nxd4 {[%clk 00:20:58]} {[%emt 00:00:33]} Qxd4 {[%clk 00:15:50]}
{[%emt 00:00:19]} 21. Rad1 {[%clk 00:14:10]} {[%emt 00:07:21]} Qf6 {[%clk
00:15:55]} {[%emt 00:00:23]} 22. Re3 {[%clk 00:09:06]} {[%emt 00:05:35]} Rxb2
{[%clk 00:11:39]} {[%emt 00:04:46]} 23. Qxc7 {[%clk 00:09:30]} {[%emt
00:00:06]} Nxg3 {[%clk 00:12:02]} {[%emt 00:00:07]} 24. hxg3 {[%clk 00:09:51]}
{[%emt 00:00:09]} Rxa2 {[%clk 00:12:16]} {[%emt 00:00:16]} 25. Qxc6 {[%clk
00:07:31]} {[%emt 00:02:50]} Qb2 {[%clk 00:05:40]} {[%emt 00:07:05]} 26. Rf1
{[%clk 00:07:57]} {[%emt 00:00:06]} Qe5 {[%clk 00:06:06]} {[%emt 00:00:03]} 27.
Rd3 {[%clk 00:07:49]} {[%emt 00:00:38]} Rb8 {[%clk 00:02:48]} {[%emt 00:03:49]}
28. Rd5 {[%clk 00:07:39]} {[%emt 00:00:40]} Qf6 {[%clk 00:01:41]} {[%emt
00:01:35]} 29. Rxd6 {[%clk 00:03:06]} {[%emt 00:05:05]} Qxf3 {[%clk 00:01:39]}
{[%emt 00:00:31]} 30. Rf6 {[%clk 00:03:22]} {[%emt 00:00:15]} Rc2 {[%clk
00:00:33]} {[%emt 00:01:37]} 31. Qd6 {[%clk 00:02:58]} {[%emt 00:00:53]} Qb3
{[%clk 00:00:32]} {[%emt 00:00:32]} 32. Rxh6 {[%clk 00:02:48]} {[%emt
00:00:39]} Qb2 {[%clk 00:00:32]} {[%emt 00:00:30]} 33. e5 {[%clk 00:02:18]}
{[%emt 00:01:01]} Re8 {[%clk 00:00:31]} {[%emt 00:00:30]} 34. Qf6 {[%clk
00:02:33]} {[%emt 00:00:14]} 1-0

[Event "Schack-SM 2024: Mastarklassen"]
[Site "Fortnox Arena, Hejaregatan 5, Vaxjo, Sweden"]
[Date "2024.07.07"]
[Round "9.7"]
[White "Ask, Josef"]
[Black "Bjorkman, Filip"]
[Result "1-0"]
[TimeControl "90 minutes for 40 moves + 30 minutes for the rest of the game + 30 seconds per move from move one."]
[WhiteTitle "FM"]
[WhiteElo "2136"]
[BlackElo "2116"]

1. c4 {[%clk 01:30:58]} {[%emt 00:00:03]} c6 {[%clk 01:30:52]} {[%emt
00:00:08]} 2. b3 {[%clk 01:30:21]} {[%emt 00:01:07]} Nf6 {[%clk 01:31:07]}
{[%emt 00:00:14]} 3. Bb2 {[%clk 01:30:17]} {[%emt 00:00:34]} d5 {[%clk
01:31:33]} {[%emt 00:00:05]} 4. Nf3 {[%clk 01:29:25]} {[%emt 00:01:22]} Bf5
{[%clk 01:30:47]} {[%emt 00:01:16]} 5. d3 {[%clk 01:28:20]} {[%emt 00:01:36]}
Nbd7 {[%clk 01:30:18]} {[%emt 00:01:00]} 6. Nbd2 {[%clk 01:27:52]} {[%emt
00:00:57]} a5 {[%clk 01:22:02]} {[%emt 00:08:46]} 7. a3 {[%clk 01:26:47]}
{[%emt 00:01:35]} Qc7 {[%clk 01:20:47]} {[%emt 00:01:45]} 8. Rc1 {[%clk
01:24:18]} {[%emt 00:02:58]} Qd6 {[%clk 01:16:12]} {[%emt 00:05:03]} 9. cxd5
{[%clk 01:23:11]} {[%emt 00:01:40]} cxd5 {[%clk 01:16:32]} {[%emt 00:00:09]} 10.
Nd4 {[%clk 01:22:58]} {[%emt 00:00:42]} Ng4 {[%clk 01:11:20]} {[%emt 00:05:43]}
11. Nxf5 {[%clk 01:13:31]} {[%emt 00:09:57]} Qf4 {[%clk 01:10:37]} {[%emt
00:01:12]} 12. f3 {[%clk 01:11:05]} {[%emt 00:02:58]} Nde5 {[%clk 00:38:37]}
{[%emt 00:32:29]} 13. fxg4 {[%clk 01:06:12]} {[%emt 00:05:22]} Nxg4 {[%clk
00:39:00]} {[%emt 00:00:09]} 14. Nf3 {[%clk 01:06:08]} {[%emt 00:00:33]} Qxf5
{[%clk 00:38:35]} {[%emt 00:00:53]} 15. h3 {[%clk 01:00:02]} {[%emt 00:06:37]}
Qh5 {[%clk 00:38:58]} {[%emt 00:00:08]} 16. hxg4 {[%clk 00:55:25]} {[%emt
00:05:07]} Qxh1 {[%clk 00:39:23]} {[%emt 00:00:05]} 17. Qc2 {[%clk 00:55:07]}
{[%emt 00:00:49]} Qh6 {[%clk 00:37:38]} {[%emt 00:02:15]} 18. Qc7 {[%clk
00:54:22]} {[%emt 00:01:14]} Qa6 {[%clk 00:37:06]} {[%emt 00:01:03]} 19. Ne5
{[%clk 00:52:17]} {[%emt 00:02:34]} Rd8 {[%clk 00:37:30]} {[%emt 00:00:07]} 20.
Bd4 {[%clk 00:51:32]} {[%emt 00:01:14]} 1-0